bitfinex-derivatives/quotes_SOLF0:USTF0_20250818
["timestamp","ask_amount","ask_price","bid_price","bid_amount"]
[1755507743822,3.1,180.56,180.55,3.17504732]
[1755507745522,3.1,180.56,180.55,0.03504732]
[1755507746232,3.1,180.56,180.55,3.17504732]
[1755507747828,4.57286961,180.65,180.55,5.57044732]
[1755507747829,3.05,180.6,180.55,5.57044732]
[1755507748031,3.05,180.6,180.56,3.14]
[1755507748737,3.05,180.67,180.56,3.14]
[1755507748932,3.05,180.65,180.56,3.14]
[1755507749333,3.05,180.65,180.6,5.5337]
[1755507749530,3.05,180.65,180.59,0.03613733]
[1755507749839,3.05,180.65,180.64,3.14]
[1755507750341,3.05,180.66,180.65,3.14]
[1755507750637,3.08819398,180.66,180.65,3.14]
[1755507750832,0.03819398,180.66,180.63,0.03949562]
[1755507751029,3.05,180.65,180.63,0.03949562]
[1755507751233,5.5327,180.64,180.63,0.03949562]
[1755507751429,3.05,180.64,180.63,0.03949562]
[1755507751927,8.5827,180.64,180.63,0.03949562]
[1755507753435,3.05,180.64,180.63,0.03949562]
[1755507754737,8.5827,180.64,180.63,0.03949562]
[1755507756034,3.05,180.58,180.56,3.14]
[1755507756234,3.05,180.58,180.54,4.57286961]
[1755507756434,3.05,180.57,180.55,3.14]
[1755507756635,3.05,180.57,180.56,3.14]
[1755507757535,3.05,180.57,180.54,10.10836961]
[1755507757841,3.08542991,180.58,180.57,3.14]
[1755507758040,0.03542991,180.58,180.57,3.14]
[1755507758234,0.03542991,180.58,180.57,8.6748]
[1755507758644,0.03542991,180.58,180.57,13.24766961]
[1755507758840,5.5331,180.63,180.59,5.5342]
[1755507759144,3.05,180.62,180.61,3.14]
[1755507760635,3.05,180.61,180.6,0.03492258]
[1755507761043,3.05,180.61,180.59,3.14]
[1755507761244,3.05,180.61,180.6,3.14]
[1755507762745,3.05,180.71,180.61,3.14]
[1755507762944,3.05,180.71,180.63,3.14]
[1755507763140,5.5321,180.66,180.63,3.14]
[1755507763443,3.05,180.65,180.62,4.57286961]
[1755507763643,3.05,180.65,180.61,3.14]
[1755507763844,3.05,180.65,180.58,3.14]
[1755507764144,3.05,180.65,180.62,0.03627004]
[1755507766142,3.05,180.65,180.54,3.14]
[1755507766342,3.08845888,180.65,180.54,3.14]
[1755507766744,3.05,180.65,180.54,3.14]
[1755507767148,3.05,180.65,180.55,5.5354]
[1755507767341,3.05,180.65,180.54,3.14]
[1755507767551,0.04259988,180.61,180.54,3.14]
[1755507767742,3.05,180.6,180.54,5.5356]
[1755507767949,3.05,180.6,180.53,3.14]
[1755507768445,3.05,180.6,180.53,8.6761]
[1755507768648,3.05,180.6,180.53,3.14]
[1755507772054,5.5354,180.56,180.53,5.536]
[1755507772255,8.6854,180.56,180.54,2.98]
[1755507772458,8.6854,180.56,180.55,2.98]
[1755507773252,3.15,180.56,180.55,2.98]
[1755507774952,8.6851,180.56,180.52,5.5363]
[1755507775260,3.15,180.55,180.54,2.98]
[1755507776061,3.15,180.54,180.52,2.98]
[1755507776355,5.5355,180.55,180.52,2.98]
[1755507776860,8.6855,180.55,180.52,2.98]
[1755507777160,5.5355,180.55,180.53,2.98]
[1755507777359,3.15,180.54,180.52,2.98]
[1755507777561,3.15,180.53,180.52,2.98]
[1755507778765,5.5361,180.53,180.5,2.98]
[1755507779057,3.15,180.52,180.49,4.57286961]
[1755507779258,3.15,180.52,180.51,2.98]
[1755507779455,3.19195733,180.52,180.51,2.98]
[1755507779856,0.04195733,180.52,180.51,2.98]
[1755507780656,3.15,180.56,180.51,2.98]
[1755507780864,3.15,180.56,180.54,2.98]
[1755507781162,5.53677843,180.65,180.54,5.5355]
[1755507781362,3.15,180.57,180.56,2.98]
[1755507782567,3.15,180.59,180.56,2.98]
[1755507782759,3.15,180.59,180.56,7.55286961]
[1755507783066,3.15,180.58,180.57,2.98]
[1755507783566,3.15,180.61,180.58,2.98]
[1755507783764,3.15,180.61,180.57,5.5348]
[1755507783959,3.15,180.67,180.59,2.98]
[1755507784162,3.15,180.65,180.59,2.98]
[1755507784766,5.5332,180.63,180.59,7.55286961]
[1755507784956,3.15,180.62,180.61,2.98]
[1755507785154,3.15,180.65,180.62,2.98]
[1755507785354,3.15,180.65,180.63,2.98]
[1755507786464,3.15,180.64,180.63,2.98]
[1755507786761,3.15,180.63,180.62,0.03574494]
[1755507787066,8.683,180.63,180.62,0.03574494]
[1755507787458,3.15,180.63,180.62,0.03574494]
[1755507787766,3.15,180.7,180.63,2.98]
[1755507787963,3.15,180.7,180.62,4.60861455]
[1755507788257,509.12,180.71,180.62,7.58861455]
[1755507788456,3.15,180.63,180.62,0.03574494]
[1755507790165,8.683,180.63,180.62,0.03574494]
[1755507790364,3.15,180.65,180.64,2.98]
[1755507790975,137.24,180.71,180.62,10.10606961]
[1755507791168,3.15,180.66,180.65,2.98]
[1755507792266,8.6821,180.66,180.63,0.03981769]
[1755507792464,5.5321,180.66,180.64,2.98]
[1755507792666,3.15,180.7,180.64,2.98]
[1755507793065,137.24,180.71,180.64,2.98]
[1755507793066,3.15,180.67,180.64,2.98]
[1755507793570,3.15,180.67,180.65,2.98]
[1755507793966,3.15,180.66,180.65,2.98]
[1755507795074,5.5318,180.67,180.64,0.04134494]
[1755507795372,3.15,180.65,180.64,0.04134494]
[1755507796272,8.6824,180.65,180.64,0.04134494]
[1755507797465,5.5341,180.6,180.57,7.55286961]
[1755507797867,5.5341,180.6,180.57,4.57286961]
[1755507798073,3.15,180.59,180.58,2.98]
[1755507798884,3.15,180.59,180.57,4.57286961]
[1755507799178,3.15,180.59,180.55,7.55286961]
[1755507799575,5.5344,180.59,180.55,4.57286961]
[1755507799772,3.15,180.58,180.56,2.98]
[1755507799976,3.15,180.58,180.55,4.57286961]
[1755507799977,0.03493522,180.6,180.57,2.98]
[1755507800182,3.15,180.59,180.57,2.98]
[1755507800681,3.15,180.58,180.57,2.98]
[1755507801775,3.15,180.58,180.55,10.10836961]
[1755507801981,5.56903522,180.6,180.55,10.10836961]
[1755507802176,5.56903522,180.6,180.56,2.98]
[1755507802385,3.18,180.58,180.55,10.10836961]
[1755507802581,3.18,180.57,180.56,3.1]
[1755507803084,3.18,180.57,180.54,3.1]
[1755507803277,3.18,180.57,180.52,4.57286961]
[1755507803478,3.18,180.57,180.53,3.1]
[1755507803679,3.18,180.57,180.54,3.1]
[1755507803879,3.18,180.55,180.52,8.6361]
[1755507804074,3.18,180.55,180.52,4.57286961]
[1755507804280,3.18,180.55,180.52,7.67286961]
[1755507804576,0.03948045,180.55,180.53,3.1]
[1755507804781,3.21948045,180.55,180.53,3.1]
[1755507805086,3.21948045,180.55,180.52,4.57286961]
[1755507805682,3.18,180.54,180.53,3.1]
[1755507807387,0.03948045,180.55,180.54,3.1]
[1755507807588,3.21948045,180.55,180.54,3.1]
[1755507807782,3.18,180.54,180.52,13.20906961]
[1755507807981,3.18,180.54,180.52,10.10906961]
[1755507808177,3.18,180.53,180.52,7.67286961]
[1755507808989,3.21948045,180.55,180.52,13.20906961]
[1755507809289,0.03948045,180.55,180.53,3.1]
[1755507809488,3.21948045,180.55,180.54,3.1]
[1755507809881,3.18,180.54,180.52,10.10916961]
[1755507810083,3.18,180.53,180.52,13.20916961]
[1755507810283,3.18,180.53,180.52,8.6363]
[1755507810580,3.18,180.53,180.52,13.20916961]
[1755507810982,3.18,180.53,180.52,3.1]
[1755507811582,0.03948045,180.55,180.53,5.5361]
[1755507811781,3.18,180.54,180.53,3.1]
[1755507812178,3.18,180.54,180.52,3.1]
[1755507812383,3.18,180.54,180.53,3.1]
[1755507813492,3.18,180.54,180.53,8.6361]
[1755507813685,3.18,180.54,180.44,433.96]
[1755507813891,3.18,180.54,180.51,4.57286961]
[1755507814191,3.18,180.54,180.53,3.1]
[1755507814388,0.03861473,180.54,180.53,3.1]
[1755507814691,3.18,180.59,180.53,0.56]
[1755507814887,3.18,180.59,180.57,7.67286961]
[1755507815192,3.18,180.59,180.58,3.1]
[1755507815582,3.18,180.59,180.58,8.6346]
[1755507815783,3.18,180.61,180.58,3.1]
[1755507815992,3.18,180.61,180.57,7.71031944]
[1755507816190,3.18,180.61,180.57,13.24501944]
[1755507816489,3.18,180.61,180.57,0.03744983]
[1755507822396,19.77,180.67,180.57,0.03744983]
[1755507822694,5.5345,180.59,180.57,0.03744983]
[1755507822893,3.18,180.58,180.54,7.67286961]
[1755507823489,3.18,180.58,180.54,7.71059677]
[1755507823693,3.18,180.58,180.54,0.03772716]
[1755507826197,3.18,180.58,180.45,3.1]
[1755507826494,3.18,180.56,180.47,5.5379]
[1755507826692,3.18,180.56,180.49,3.1]
[1755507828196,3.18,180.56,180.51,3.1]
[1755507828393,3.18,180.56,180.48,4.57286961]
[1755507828394,3.18,180.53,180.48,4.57286961]
[1755507828698,3.18,180.53,180.49,3.1]
[1755507829193,3.18,180.53,180.49,8.6372]
[1755507829394,3.18,180.52,180.5,3.1]
[1755507829597,3.18,180.52,180.48,7.67286961]
[1755507830093,3.18,180.52,180.49,3.1]
[1755507830397,0.03972899,180.54,180.48,4.57286961]
[1755507830398,3.18,180.53,180.48,4.57286961]
[1755507830598,3.18,180.53,180.48,7.67286961]
[1755507830795,5.5369,180.51,180.48,7.67286961]
[1755507830997,0.03972899,180.54,180.48,4.57286961]
[1755507831296,3.18,180.52,180.49,3.1]
[1755507831494,3.21972899,180.54,180.51,4.57286961]
[1755507831698,0.03972899,180.54,180.52,3.1]
[1755507831897,3.18,180.57,180.53,5.5359]
[1755507832096,3.18,180.57,180.54,4.57286961]
[1755507832292,3.18,180.57,180.56,2.96]
[1755507832495,3.1,180.61,180.56,2.96]
[1755507832699,3.1,180.61,180.59,2.96]
[1755507832896,3.1,180.63,180.59,2.96]
[1755507833298,3.1,180.66,180.62,2.96]
[1755507833497,3.1,180.66,180.61,7.53286961]
[1755507833698,3.1,180.66,180.62,2.96]
[1755507834193,3.1,180.66,180.6,2.96]
[1755507834394,5.533,180.63,180.6,2.96]
[1755507834600,3.1,180.62,180.6,2.96]
[1755507834895,3.1,180.6,180.57,2.96]
[1755507835200,3.1,180.59,180.57,2.96]
[1755507835398,3.1,180.58,180.56,4.57286961]
[1755507835602,4.57286961,180.7,180.57,0.03555862]
[1755507835799,4.1089476,180.69,180.57,0.03555862]
[1755507836000,5.5345,180.59,180.56,4.57286961]
[1755507836200,3.1,180.57,180.54,7.53286961]
[1755507836500,3.1,180.57,180.55,2.96]
[1755507836703,3.1,180.56,180.55,2.96]
[1755507837003,3.1,180.66,180.55,2.96]
[1755507837200,5.5343,180.59,180.55,2.96]
[1755507837508,5.5343,180.59,180.57,2.96]
[1755507837799,3.1,180.58,180.57,2.96]
[1755507838398,8.6346,180.58,180.57,2.96]
[1755507838602,3.1,180.57,180.55,0.03619535]
[1755507838803,3.1,180.57,180.56,2.96]
[1755507839204,4.57286961,180.67,180.56,2.96]
[1755507839401,4.11344601,180.66,180.56,2.96]
[1755507839600,7.67286961,180.64,180.39,0.96417588]
[1755507839805,3.1,180.62,180.59,0.03660778]
[1755507840005,3.1,180.62,180.51,2.96]
[1755507840210,4.11433857,180.61,180.51,2.96]
[1755507840400,4.11402761,180.6,180.51,2.96]
[1755507840598,3.1,180.59,180.51,2.96]
[1755507841706,3.1,180.59,180.52,2.96]
[1755507842105,4.13286913,180.58,180.49,2.96]
[1755507842308,4.13286913,180.57,180.49,2.96]
[1755507842506,3.1,180.56,180.49,2.96]
[1755507842697,3.1,180.54,180.48,5.5376]
[1755507842903,0.03758276,180.55,180.51,2.96]
[1755507842904,3.1,180.53,180.51,2.96]
[1755507843602,3.13758276,180.55,180.5,2.96]
[1755507843910,3.13758276,180.55,180.51,2.96]
[1755507844107,3.1,180.54,180.5,4.57286961]
[1755507844408,0.03758276,180.55,180.52,2.96]
[1755507844604,0.03758276,180.55,180.5,4.57286961]
[1755507844605,3.1,180.54,180.5,10.10966961]
[1755507844810,3.1,180.54,180.53,2.96]
[1755507845015,3.13758276,180.55,180.53,2.96]
[1755507845212,3.1,180.54,180.5,7.53286961]
[1755507846210,3.1,180.54,180.5,2.96]
[1755507846412,3.1,180.54,180.48,2.96]
[1755507846804,3.1,180.54,180.5,10.10986961]
[1755507847004,0.03758276,180.55,180.52,2.96]
[1755507847209,4.57286961,180.62,180.52,2.96]
[1755507847509,3.13501572,180.55,180.53,2.96]
[1755507847706,3.1,180.54,180.5,4.57286961]
[1755507847909,3.1,180.53,180.51,2.96]
[1755507848107,3.1,180.54,180.51,2.96]
[1755507848306,3.13763462,180.54,180.51,2.96]
[1755507848507,3.13763462,180.54,180.52,2.96]
[1755507848708,3.13763462,180.54,180.53,2.96]
[1755507848906,3.13763462,180.54,180.52,2.96]
[1755507849712,3.1,180.53,180.52,2.96]
[1755507849909,3.13763462,180.54,180.53,2.96]
[1755507850410,3.1,180.53,180.52,2.96]
[1755507850712,3.13763462,180.54,180.52,2.96]
[1755507850912,3.13763462,180.54,180.53,2.96]
[1755507851316,0.03763462,180.54,180.5,4.57286961]
[1755507851513,3.1,180.52,180.51,2.96]
[1755507851709,0.03763462,180.54,180.5,4.57286961]
[1755507852008,3.13763462,180.54,180.53,2.96]
[1755507852212,3.1,180.53,180.51,7.53286961]
[1755507852412,3.1,180.53,180.51,4.57286961]
[1755507852611,3.1,180.53,180.52,2.96]
[1755507853721,3.1,180.53,180.51,4.57286961]
[1755507853915,3.1,180.52,180.51,7.53286961]
[1755507857117,3.1,180.52,180.51,2.96]
[1755507857306,3.1,180.52,180.49,7.53286961]
[1755507857614,3.1,180.52,180.5,2.96]
[1755507857916,3.13763462,180.54,180.5,2.96]
[1755507858217,0.03763462,180.54,180.5,2.96]
[1755507858517,3.1,180.53,180.5,5.5368]
[1755507858720,3.1,180.53,180.52,2.96]
[1755507860126,0.03763462,180.54,180.51,5.5367]
[1755507860426,3.13763462,180.54,180.53,2.96]
[1755507861026,3.13763462,180.54,180.51,5.5367]
[1755507861230,3.1,180.53,180.52,2.96]
[1755507862928,3.1,180.53,180.5,5.537]
[1755507863129,3.05,180.52,180.51,3.1]
[1755507863433,3.05,180.52,180.51,8.6367]
[1755507865038,3.05,180.52,180.51,3.1]
[1755507865736,3.05,180.52,180.49,4.57286961]
[1755507866633,3.05,180.53,180.49,4.57286961]
[1755507867028,3.05,180.53,180.5,3.1]
[1755507867233,3.05,180.53,180.49,7.67286961]
[1755507867532,3.05,180.53,180.49,4.57286961]
[1755507867729,3.05,180.52,180.49,4.57286961]
[1755507868130,0.03763462,180.54,180.49,4.57286961]
[1755507868337,3.05,180.53,180.5,3.1]
[1755507869238,3.05,180.53,180.52,8.6364]
[1755507873842,3.08763462,180.54,180.53,8.6361]
[1755507874942,3.08763462,180.54,180.49,3.1]
[1755507875143,3.08763462,180.54,180.5,4.57286961]
[1755507876842,5.5363,180.53,180.5,4.57286961]
[1755507877143,3.05,180.52,180.5,4.57286961]
[1755507878231,3.05,180.52,180.5,10.10976961]
[1755507880240,3.05,180.52,180.48,3.1]
[1755507880434,0.03763462,180.54,180.5,3.1]
[1755507880641,3.05,180.53,180.51,3.1]
[1755507880834,3.05,180.53,180.49,4.57286961]
[1755507881036,3.05,180.53,180.49,7.67286961]
[1755507881437,3.05,180.53,180.5,5.5369]
[1755507881646,3.05,180.52,180.5,3.1]
[1755507882142,3.05,180.52,180.51,8.6367]
[1755507882543,3.05,180.52,180.51,5.5367]
[1755507883844,3.05,180.52,180.5,5.5368]
[1755507884242,3.05,180.52,180.49,7.67286961]
[1755507884646,3.05,180.52,180.49,4.57286961]
[1755507884846,3.05,180.52,180.5,3.1]
[1755507885049,3.05,180.52,180.49,4.57286961]
[1755507885246,3.05,180.52,180.5,5.5369]
[1755507887445,0.03622468,180.54,180.49,4.57286961]
[1755507887651,3.05,180.52,180.5,3.1]
[1755507887949,3.05,180.51,180.5,3.1]
[1755507888349,3.05,180.51,180.5,8.637]
[1755507888850,0.03622468,180.54,180.53,5.5361]
[1755507889052,0.03622468,180.54,180.53,8.6361]
[1755507889644,3.08622468,180.54,180.53,5.5361]
[1755507890040,0.03622468,180.54,180.51,4.57286961]
[1755507890246,0.03622468,180.54,180.51,7.67286961]
[1755507890451,3.05,180.52,180.51,7.67286961]
[1755507890753,3.05,180.52,180.51,10.10956961]
[1755507891951,3.05,180.52,180.51,4.57286961]
[1755507892449,3.05,180.52,180.49,4.57286961]
[1755507893048,3.04,180.53,180.5,3.12]
[1755507893249,3.04,180.52,180.51,3.12]
[1755507893450,0.03622468,180.54,180.49,4.57286961]
[1755507893652,3.04,180.53,180.52,3.12]
[1755507893948,3.04,180.53,180.52,8.6561]
[1755507894254,3.04,180.53,180.5,3.12]
[1755507894648,3.04,180.53,180.51,5.5365]
[1755507894852,0.03622468,180.54,180.51,5.5365]
[1755507895056,3.04,180.52,180.51,3.12]
[1755507895252,3.04,180.52,180.51,8.6567]
[1755507895451,3.04,180.52,180.51,13.22956961]
[1755507895647,3.04,180.52,180.51,8.6567]
[1755507895951,3.04,180.52,180.45,11.0771]
[1755507895952,3.04,180.52,180.5,5.5369]
[1755507896246,3.04,180.52,180.49,7.69286961]
[1755507896247,3.04,180.52,180.49,4.57286961]
[1755507896646,3.04,180.52,180.49,10.11006961]
[1755507897042,3.04,180.51,180.49,4.57286961]
[1755507897245,3.04,180.51,180.5,3.12]
[1755507897653,3.04,180.51,180.49,10.11006961]
[1755507897855,3.04,180.5,180.49,13.23006961]
[1755507898850,0.03541355,180.51,180.5,8.657]
[1755507899953,5.5353,180.56,180.52,5.5363]
[1755507900155,140.82522772,180.63,180.53,3.12]
[1755507900358,8.60683648,180.62,180.53,3.12]
[1755507900658,8.60683648,180.61,180.52,4.57286961]
[1755507900954,3.04,180.59,180.49,5.5372]
[1755507901255,3.04,180.57,180.49,8.6572]
[1755507901448,3.04,180.55,180.49,3.12]
[1755507901654,3.04,180.55,180.45,4.57286961]
[1755507901854,3.04,180.55,180.47,3.12]
[1755507902053,3.04,180.55,180.48,5.5374]
[1755507902355,3.04,180.55,180.48,8.6574]
[1755507902856,3.04,180.55,180.49,5.5373]
[1755507903056,3.04,180.52,180.49,8.6573]
[1755507903557,3.04,180.52,180.51,3.12]
[1755507903758,3.04,180.52,180.47,4.57286961]
[1755507904056,3.04,180.52,180.5,8.6567]
[1755507904858,0.03898968,180.53,180.51,5.5367]
[1755507905061,0.03898968,180.53,180.5,3.12]
[1755507905258,0.03898968,180.53,180.52,5.5364]
[1755507905556,0.03898968,180.53,180.48,3.12]
[1755507905756,0.03898968,180.53,180.49,3.12]
[1755507905963,3.04,180.52,180.5,5.5368]
[1755507906163,3.04,180.51,180.5,8.6568]
[1755507906659,3.07898968,180.53,180.51,5.5366]
[1755507906863,3.07898968,180.53,180.48,3.12]
[1755507907065,3.04,180.52,180.48,3.12]
[1755507907266,0.03898968,180.53,180.52,3.12]
[1755507907660,3.07898968,180.53,180.52,3.12]
[1755507907858,3.07898968,180.53,180.44,11.0774]
[1755507908057,3.07898968,180.53,180.48,4.57286961]
[1755507908367,3.07898968,180.53,180.49,3.12]
[1755507908762,3.07898968,180.53,180.52,3.12]
[1755507909663,8.61518968,180.53,180.52,3.12]
[1755507910367,3.07898968,180.53,180.49,5.5372]
[1755507910557,3.07898968,180.53,180.51,3.12]
[1755507910968,5.5364,180.52,180.51,3.12]
[1755507911268,8.5764,180.52,180.51,3.12]
[1755507912866,8.5764,180.52,180.49,4.57286961]
[1755507912867,5.5369,180.51,180.49,7.69286961]
[1755507913066,8.5769,180.51,180.5,3.12]
[1755507913666,3.04,180.51,180.5,3.12]
[1755507913868,5.5365,180.52,180.5,3.12]
[1755507914368,5.5365,180.52,180.48,4.57286961]
[1755507914369,3.07898968,180.53,180.51,3.12]
[1755507914968,8.61508968,180.53,180.51,3.12]
[1755507915266,3.04,180.52,180.45,3.12]
[1755507915465,3.07898968,180.53,180.5,3.12]
[1755507915865,3.04,180.52,180.5,3.12]
[1755507916066,0.03898968,180.53,180.5,3.12]
[1755507916470,3.04,180.52,180.5,3.12]
[1755507916764,0.03898968,180.53,180.5,3.12]
[1755507916965,8.5765,180.52,180.49,10.10996961]
[1755507917168,8.5765,180.52,180.51,3.12]
[1755507917370,3.04,180.52,180.51,8.6567]
[1755507917766,0.03898968,180.53,180.52,3.12]
[1755507918469,0.03898968,180.53,180.52,8.6564]
[1755507918762,0.03898968,180.53,180.52,13.22926961]
[1755507918966,3.04,180.52,180.49,7.69286961]
[1755507919167,0.03898968,180.53,180.5,3.12]
[1755507919366,8.61518968,180.53,180.5,3.12]
[1755507919573,3.04,180.52,180.5,3.12]
[1755507919866,3.04,180.52,180.51,3.12]
[1755507920060,3.04,180.52,180.49,4.57286961]
[1755507920367,3.04,180.52,180.5,3.12]
[1755507920665,3.04,180.52,180.48,7.69286961]
[1755507920866,3.04,180.52,180.48,4.57286961]
[1755507921060,3.07725056,180.52,180.48,7.69286961]
[1755507921265,3.07725056,180.52,180.45,7.69286961]
[1755507921967,3.04,180.46,180.44,4.57286961]
[1755507922567,3.04,180.46,180.45,2.99]
[1755507924074,0.0383242,180.47,180.45,5.5384]
[1755507924277,0.0383242,180.47,180.46,2.99]
[1755507925079,3.01,180.46,180.44,4.57286961]
[1755507925670,5.5384,180.46,180.44,7.56286961]
[1755507925979,3.0483242,180.47,180.45,2.99]
[1755507926175,0.0383242,180.47,180.45,2.99]
[1755507926476,3.01,180.5,180.45,2.99]
[1755507926669,8.5471,180.5,180.46,5.538]
[1755507926870,8.5471,180.5,180.47,2.99]
[1755507927272,8.5471,180.5,180.47,8.5279]
[1755507927574,8.5471,180.5,180.49,2.99]
[1755507929778,3.01,180.5,180.49,2.99]
[1755507930376,8.5465,180.52,180.49,2.99]
[1755507930580,3.01,180.51,180.5,2.99]
[1755507931284,3.01,180.5,180.48,3.03122685]
[1755507931674,5.5375,180.49,180.47,4.57286961]
[1755507931976,3.01,180.48,180.47,7.60073809]
[1755507932480,5.5372,180.5,180.47,10.14863809]
[1755507932778,3.01,180.52,180.48,2.99]
[1755507933081,3.01,180.56,180.48,2.99]
[1755507933274,3.01,180.54,180.48,2.99]
[1755507933476,5.5369,180.51,180.5,0.03530736]
[1755507933676,8.5469,180.51,180.5,3.02530736]
[1755507934079,8.5469,180.51,180.5,0.03530736]
[1755507936785,8.5469,180.51,180.5,3.02530736]
[1755507937185,8.5469,180.51,180.5,0.03530736]
[1755507940986,8.5469,180.51,180.5,3.02530736]
[1755507942690,3.01,180.51,180.5,3.02530736]
[1755507942881,3.01,180.59,180.5,3.02530736]
[1755507943088,11.068,180.6,180.5,3.02530736]
[1755507943089,3.01,180.57,180.5,3.02530736]
[1755507943278,5.5363,180.53,180.5,3.02530736]
[1755507943586,8.5463,180.53,180.5,3.02530736]
[1755507943784,11.068,180.6,180.51,5.5367]
[1755507943989,3.01,180.54,180.52,2.99]
[1755507944492,5.5356,180.55,180.51,5.57436495]
[1755507944695,3.01,180.53,180.52,2.99]
[1755507948394,3.01,180.54,180.52,2.99]
[1755507948598,3.01,180.62,180.54,2.99]
[1755507948801,7.18805337,180.61,180.58,2.99]
[1755507948990,123.57483857,180.63,180.58,2.99]
[1755507948991,3.01,180.62,180.58,2.99]
[1755507949190,8.5434,180.62,180.58,8.5245]
[1755507949393,6.1764783,180.69,180.59,2.99]
[1755507949699,3.01,180.67,180.59,2.99]
[1755507949901,5.533,180.64,180.59,5.5341]
[1755507950099,3.01,180.63,180.62,0.0414233]
[1755507950398,3.01,180.63,180.62,3.0314233]
[1755507951297,5.533,180.64,180.62,3.0314233]
[1755507951496,8.543,180.64,180.62,3.0314233]
[1755507952701,3.01,180.64,180.62,3.0314233]
[1755507953102,3.01,180.64,180.63,3.18]
[1755507954496,2.96,180.63,180.62,0.0414233]
[1755507954691,2.96,180.63,180.54,4.57286961]
[1755507954895,4.14543343,180.62,180.51,5.5365]
[1755507955195,7.10496541,180.61,180.52,3.18]
[1755507955401,8.4961,180.53,180.5,3.18]
[1755507955695,2.96,180.52,180.51,3.18]
[1755507956106,2.99823697,180.52,180.51,3.18]
[1755507957603,8.53463697,180.52,180.51,3.18]
[1755507958101,2.99823697,180.52,180.46,3.18]
[1755507958300,5.5368,180.51,180.46,3.18]
[1755507958495,2.96,180.5,180.46,3.18]
[1755507958698,2.96,180.5,180.46,8.718]
[1755507958893,3.00077617,180.5,180.47,3.18]
[1755507959301,3.00077617,180.5,180.48,3.18]
[1755507959501,0.04077617,180.5,180.48,3.18]
[1755507959998,3.00077617,180.5,180.49,3.18]
[1755507960199,0.04077617,180.5,180.49,3.18]
[1755507960396,2.96,180.55,180.49,3.18]
[1755507960702,5.536,180.54,180.49,8.7173]
[1755507960902,2.96,180.53,180.5,3.18]
[1755507961403,2.96,180.53,180.51,3.18]
[1755507961599,15.63916961,180.63,180.4,137.06]
[1755507961901,2.96,180.53,180.5,0.03649128]
[1755507962408,5.5365,180.52,180.49,3.18]
[1755507962594,2.96,180.51,180.49,3.18]
[1755507962796,2.96,180.5,180.49,3.18]
[1755507962998,2.96,180.5,180.49,3.21591405]
[1755507963201,2.96,180.52,180.49,3.21591405]
[1755507963704,5.5362,180.53,180.49,0.03591405]
[1755507964005,2.96,180.51,180.5,3.18]
[1755507964704,2.96,180.52,180.51,3.18]
[1755507964905,4.57286961,180.6,180.49,0.03686318]
[1755507965106,2.96,180.58,180.49,3.18]